fUSD/lending_fUSD_20250616
["ID","MTS","AMOUNT","RATE_DAILY","PERIOD"]
[366121873,1750074643899,-1333.95,0.00016438,2]
[366121874,1750074643909,-513.65,0.00016438,2]
[366121875,1750074643920,-490.0,0.00016438,2]
[366121876,1750074643930,-945.95,0.00016438,2]
[366121877,1750074643941,-490.0,0.00016438,2]
[366121878,1750074643952,-659.11,0.00016438,2]
[366121879,1750074643962,-290.81193275,0.00016438,2]
[366121880,1750074643972,-1214.89,0.00016438,2]
[366121881,1750074643982,-1177.19,0.00016438,2]
[366121882,1750074643993,-490.0,0.00016438,2]
[366121883,1750074644003,-914.5,0.00016438,2]
[366121884,1750074644014,-495.31920549,0.00016438,2]
[366121885,1750074644025,-1589.95,0.00016438,2]
[366121886,1750074644036,-490.0,0.00016438,2]
[366121887,1750074644046,-490.0,0.00016438,2]
[366121888,1750074644057,-490.0,0.00016438,2]
[366121889,1750074644068,-490.0,0.00016438,2]
[366121890,1750074644078,-490.0,0.00016438,2]
[366121891,1750074644088,-1622.51,0.00016438,2]
[366121892,1750074644098,-490.0,0.00016438,2]
[366121893,1750074644109,-490.000001,0.00016438,2]
[366121894,1750074644119,-7650.63,0.00016438,2]
[366121895,1750074644130,-490.0,0.00016438,2]
[366121896,1750074644141,-490.0,0.00016438,2]
[366121897,1750074644153,-490.0,0.00016438,2]
[366121898,1750074644163,-490.0,0.00016438,2]
[366121899,1750074644173,-1014.46,0.00016438,2]
[366121900,1750074644184,-973.84,0.00016438,2]
[366121901,1750074644195,-490.0,0.00016438,2]
[366121902,1750074644206,-490.0,0.00016438,2]
[366121903,1750074644216,-7644.41,0.00016438,2]
[366121904,1750074644228,-490.0,0.00016438,2]
[366121905,1750074644238,-2094.5,0.00016438,2]
[366121906,1750074644248,-1089.57,0.00016438,2]
[366121907,1750074644260,-490.0,0.00016438,2]
[366121908,1750074644270,-490.0,0.00016438,2]
[366121909,1750074644280,-1154.96,0.00016438,2]
[366121910,1750074644291,-535.4,0.00016438,2]
[366121911,1750074644301,-1789.44,0.00016438,2]
[366121912,1750074644311,-490.0,0.00016438,2]
[366121913,1750074644321,-7769.49,0.00016438,2]
[366121914,1750074644331,-490.0,0.00016438,2]
[366121915,1750074644343,-490.0,0.00016438,2]
[366121916,1750074644353,-1206.75,0.00016438,2]
[366121917,1750074644363,-490.0,0.00016438,2]
[366121918,1750074644373,-1484.88,0.00016438,2]
[366121919,1750074644384,-490.0,0.00016438,2]
[366121920,1750074644394,-490.0,0.00016438,2]
[366121921,1750074644405,-470.0,0.00016438,2]
[366121922,1750074644415,-600.65,0.00016438,2]
[366121923,1750074644426,-490.0,0.00016438,2]
[366121924,1750074644436,-3015.19,0.00016438,2]
[366121925,1750074644447,-2070.64,0.00016438,2]
[366121926,1750074644457,-686.89,0.00016438,2]
[366121927,1750074644469,-490.0,0.00016438,2]
[366121928,1750074644486,-789.96,0.00016438,2]
[366121929,1750074644496,-490.0,0.00016438,2]
[366121930,1750074644506,-547.12,0.00016438,2]
[366121931,1750074644516,-490.0,0.00016438,2]
[366121932,1750074644526,-1631.22,0.00016438,2]
[366121933,1750074644537,-4611.68,0.00016438,2]
[366121934,1750074644547,-490.0,0.00016438,2]
[366121935,1750074644557,-490.0,0.00016438,2]
[366121936,1750074644566,-745.56,0.00016438,2]
[366121937,1750074644576,-848.8,0.00016438,2]
[366121938,1750074644586,-740.0,0.00016438,2]
[366121939,1750074644597,-894.67,0.00016438,2]
[366121940,1750074644606,-748.97,0.00016438,2]
[366121941,1750074644616,-1337.24,0.00016438,2]
[366121942,1750074644625,-1053.69,0.00016438,2]
[366121943,1750074644635,-490.0,0.00016438,2]
[366121944,1750074644646,-490.0,0.00016438,2]
[366121945,1750074644655,-956.5,0.00016438,2]
[366121946,1750074644666,-490.0,0.00016438,2]
[366121947,1750074644676,-490.0,0.00016438,2]
[366121948,1750074644686,-490.0,0.00016438,2]
[366121949,1750074644696,-490.0,0.00016438,2]
[366121950,1750074644709,-899.76,0.00016438,2]
[366121951,1750074644719,-490.0,0.00016438,2]
[366121952,1750074644730,-648.19,0.00016438,2]
[366121953,1750074644740,-490.0,0.00016438,2]
[366121954,1750074644751,-490.0,0.00016438,2]
[366121955,1750074644761,-490.0,0.00016438,2]
[366121956,1750074644771,-14449.07,0.00016438,2]
[366121957,1750074644782,-490.0,0.00016438,2]
[366121958,1750074644792,-2579.55,0.00016438,2]
[366121959,1750074644802,-490.0,0.00016438,2]
[366121960,1750074644812,-2863.66,0.00016438,2]
[366121961,1750074644822,-1106.99,0.00016438,2]
[366121962,1750074644832,-1121.15,0.00016438,2]
[366121963,1750074644843,-490.0,0.00016438,2]
[366121964,1750074644854,-490.0,0.00016438,2]
[366121965,1750074644863,-481.27839089,0.00016438,2]
[366121966,1750074644874,-2566.76,0.00016438,2]
[366121967,1750074644883,-490.0,0.00016438,2]
[366121968,1750074644893,-787.0,0.00016438,2]
[366121969,1750074644903,-490.0,0.00016438,2]
[366121970,1750074644913,-997.6,0.00016438,2]
[366121971,1750074644922,-1732.39,0.00016438,2]
[366121972,1750074644933,-5588.84,0.00016438,2]
[366121973,1750074644943,-490.0,0.00016438,2]
[366121974,1750074644953,-1281.67,0.00016438,2]
[366121975,1750074644962,-719.49,0.00016438,2]
[366121976,1750074644973,-1112.72,0.00016438,2]
[366121977,1750074644982,-490.0,0.00016438,2]
[366121978,1750074645004,-583.43,0.00016438,2]
[366121979,1750074645026,-1162.59,0.00016438,2]
[366121980,1750074645050,-2112.27,0.00016438,2]
[366121981,1750074645076,-490.0,0.00016438,2]
[366121982,1750074645100,-2242.66,0.00016438,2]
[366121983,1750074645124,-490.0,0.00016438,2]
[366121984,1750074645146,-490.0,0.00016438,2]
[366121985,1750074645170,-490.0,0.00016438,2]
[366121986,1750074645193,-490.0,0.00016438,2]
[366121987,1750074645218,-1281.37,0.00016438,2]
[366121988,1750074645251,-794.24,0.00016438,2]
[366121989,1750074645279,-616.59,0.00016438,2]
[366121990,1750074645290,-490.0,0.00016438,2]
[366121991,1750074645299,-490.0,0.00016438,2]
[366121992,1750074645309,-490.0,0.00016438,2]
[366121993,1750074645320,-3465.63,0.00016438,2]
[366121994,1750074645330,-1027.8,0.00016438,2]
[366121995,1750074645339,-3111.14,0.00016438,2]
[366121996,1750074645349,-490.0,0.00016438,2]
[366121997,1750074645359,-3417.58,0.00016438,2]
[366121998,1750074645369,-490.0,0.00016438,2]
[366121999,1750074645380,-607.49,0.00016438,2]
[366122000,1750074645390,-490.0,0.00016438,2]
[366122001,1750074645400,-812.39,0.00016438,2]
[366122002,1750074645411,-16326.5,0.00016438,2]
[366122003,1750074645423,-902.83,0.00016438,2]
[366122004,1750074645432,-2997.09,0.00016438,2]
[366122005,1750074645442,-490.0,0.00016438,2]
[366122006,1750074645453,-7734.13,0.00016438,2]
[366122007,1750074645463,-948.27,0.00016438,2]
[366122008,1750074645472,-6813.75,0.00016438,2]
[366122009,1750074645482,-1303.41,0.00016438,2]
[366122010,1750074645492,-1495.99,0.00016438,2]
[366122011,1750074645502,-490.0,0.00016438,2]
[366122012,1750074645512,-646.71,0.00016438,2]
[366122013,1750074645523,-1303.41,0.00016438,2]
[366122014,1750074645532,-800.79,0.00016438,2]
[366122015,1750074645543,-490.0,0.00016438,2]
[366122016,1750074645554,-1361.63,0.00016438,2]
[366122017,1750074645564,-1603.74,0.00016438,2]
[366122018,1750074645574,-7133.56,0.00016438,2]
[366122019,1750074645584,-490.0,0.00016438,2]
[366122020,1750074645593,-295.93898937,0.00016438,2]
[366122021,1750074645603,-490.0,0.00016438,2]
[366122022,1750074645613,-1370.24,0.00016438,2]
[366122023,1750074645623,-2550.45,0.00016438,2]
[366122024,1750074645634,-490.0,0.00016438,2]
[366122025,1750074645643,-1034.27,0.00016438,2]
[366122026,1750074645653,-490.0,0.00016438,2]
[366122027,1750074645663,-490.0,0.00016438,2]
[366122028,1750074645673,-490.0,0.00016438,2]
[366122029,1750074645682,-493.11991115,0.00016438,2]
[366122030,1750074645692,-1476.09,0.00016438,2]
[366122031,1750074645701,-490.0,0.00016438,2]
[366122032,1750074645714,-1505.72,0.00016438,2]
[366122033,1750074645723,-4163.16,0.00016438,2]
[366122035,1750074645733,-2011.07,0.00016438,2]
[366122036,1750074645742,-1865.71,0.00016438,2]
[366122037,1750074645752,-583.44,0.00016438,2]
[366122038,1750074645762,-727.85,0.00016438,2]
[366122039,1750074645772,-1265.59,0.00016438,2]
[366122040,1750074645782,-747.25,0.00016438,2]
[366122041,1750074645792,-1291.48,0.00016438,2]
[366122042,1750074645800,-490.0,0.00016438,2]
[366122043,1750074645810,-490.0,0.00016438,2]
[366122044,1750074645820,-490.0,0.00016438,2]
[366122045,1750074645829,-596.86,0.00016438,2]
[366122046,1750074645839,-490.0,0.00016438,2]
[366122047,1750074645848,-490.0,0.00016438,2]
[366122048,1750074645857,-970.54,0.00016438,2]
[366122049,1750074645867,-1713.69,0.00016438,2]
[366122050,1750074645876,-1026.99,0.00016438,2]
[366122051,1750074645886,-497.41435591,0.00016438,2]
[366122052,1750074645895,-490.0,0.00016438,2]
[366122053,1750074645904,-1271.38,0.00016438,2]
[366122054,1750074645915,-4645.96,0.00016438,2]
[366122055,1750074645925,-1009.82,0.00016438,2]
[366122056,1750074645934,-4882.5,0.00016438,2]
[366122057,1750074645943,-490.0,0.00016438,2]
[366122058,1750074645953,-3719.37,0.00016438,2]
[366122059,1750074645962,-152.44944783,0.00016438,2]
[366122060,1750074645972,-490.0,0.00016438,2]
[366122061,1750074645982,-490.0,0.00016438,2]
[366122062,1750074645991,-490.0,0.00016438,2]
[366122063,1750074646000,-490.0,0.00016438,2]
[366122064,1750074646010,-664.43,0.00016438,2]
[366122065,1750074646019,-490.0,0.00016438,2]
[366122066,1750074646029,-892.55,0.00016438,2]
[366122067,1750074646039,-3224.44,0.00016438,2]
[366122068,1750074646048,-945.67,0.00016438,2]
[366122069,1750074646058,-771.9,0.00016438,2]
[366122070,1750074646067,-490.0,0.00016438,2]
[366122071,1750074646077,-593.73,0.00016438,2]
[366122072,1750074646086,-490.0,0.00016438,2]
[366122073,1750074646096,-869.3,0.00016438,2]
[366122074,1750074646105,-948.2,0.00016438,2]
[366122075,1750074646116,-3056.64,0.00016438,2]
[366122076,1750074646125,-1983.26,0.00016438,2]
[366122077,1750074646134,-1146.36,0.00016438,2]
[366122078,1750074646144,-490.0,0.00016438,2]
[366122081,1750074646598,-490.0,0.00016438,2]
[366122082,1750074646608,-513.15,0.00016438,2]
[366122083,1750074646618,-1017.08,0.00016438,2]
[366122084,1750074646628,-642.55,0.00016438,2]
[366122085,1750074646638,-2654.3,0.00016438,2]
[366122086,1750074646648,-5571.04,0.00016438,2]
[366122087,1750074646658,-1596.39,0.00016438,2]
[366122088,1750074646667,-1019.08,0.00016438,2]
[366122089,1750074646676,-17719.7,0.00016438,2]
[366122090,1750074646686,-1497.48,0.00016438,2]
[366122091,1750074646695,-2037.51,0.00016438,2]
[366122092,1750074646705,-490.0,0.00016438,2]
[366122093,1750074646716,-502.87,0.00016438,2]
[366122094,1750074646726,-1521.18,0.00016438,2]
[366122095,1750074646735,-1758.62,0.00016438,2]
[366122096,1750074646745,-490.0,0.00016438,2]
[366122097,1750074646755,-1146.23,0.00016438,2]
[366122098,1750074646764,-490.0,0.00016438,2]
[366122099,1750074646774,-568.36,0.00016438,2]
[366122100,1750074646784,-490.0,0.00016438,2]
[366122101,1750074646794,-1496.4,0.00016438,2]
[366122102,1750074646803,-552.94030963,0.00016438,2]
[366122103,1750074647583,-566.26898685,0.00016438,2]
[366122104,1750074647595,-309.15070352,0.00016438,2]
[366122105,1750074647606,-760.39929648,0.00016438,2]
[366122106,1750074648062,-220.38070352,0.00016438,2]
[366122107,1750074648072,-2772.11,0.00016438,2]
[366122108,1750074648082,-418.83237627,0.00016438,2]
[366122109,1750074648103,-414.7651073,0.00016438,2]
[366122110,1750074648114,-56.26251643,0.00016438,2]
[366122111,1750074648125,-833.30342616,0.00016438,2]
[366122112,1750074648142,-459.44657384,0.00016438,2]
[366122113,1750074648152,-32.50581605,0.00016438,2]
[366122114,1750074648164,-296.36349921,0.00016438,2]
[366122115,1750074648174,-523.6,0.00016438,2]
[366122116,1750074648184,-862.38,0.00016438,2]
[366122117,1750074648194,-1740.51,0.00016438,2]
[366122118,1750074648205,-617.58,0.00016438,2]
[366122119,1750074648214,-490.0,0.00016438,2]
[366122120,1750074648224,-493.46825494,0.00016438,2]
[366122121,1750074648236,-645.25,0.00016438,2]
[366122122,1750074648246,-619.63677786,0.00016438,2]
[366122123,1750074648813,-624.94584388,0.00016055,2]
[366122124,1750074648825,-172.56415612,0.00016055,2]
[366122125,1750074648835,-1639.16322214,0.00016438,2]
[366122126,1750074648845,-547.23034373,0.00016438,2]
[366122127,1750074648857,-844.34532881,0.00016438,2]
[366122128,1750074648962,-222.46432746,0.00016438,2]
[366122129,1750074648973,-490.0,0.00016438,2]
[366122130,1750074648983,-490.0,0.00016438,2]
[366122131,1750074648993,-1614.85,0.00016438,2]
[366122132,1750074649003,-1290.85,0.00016438,2]
[366122133,1750074649013,-490.0,0.00016438,2]
[366122134,1750074649023,-490.0,0.00016438,2]
[366122135,1750074649033,-694.85,0.00016438,2]
[366122136,1750074649043,-571.34,0.00016438,2]
[366122137,1750074649053,-4525.24,0.00016438,2]
[366122138,1750074649062,-490.0,0.00016438,2]
[366122139,1750074649072,-490.0,0.00016438,2]
[366122140,1750074649082,-912.68,0.00016438,2]
[366122141,1750074649091,-490.0,0.00016438,2]
[366122142,1750074649102,-1283.02,0.00016438,2]
[366122143,1750074649111,-572.52,0.00016438,2]
[366122144,1750074649121,-2662.37,0.00016438,2]
[366122145,1750074649131,-714.37,0.00016438,2]
[366122146,1750074649141,-490.0,0.00016438,2]
[366122147,1750074649151,-550.02,0.00016438,2]
[366122148,1750074649162,-699.01,0.00016438,2]
[366122149,1750074649172,-921.03,0.00016438,2]
[366122150,1750074649182,-705.13,0.00016438,2]
[366122151,1750074649193,-1223.3,0.00016438,2]
[366122152,1750074649204,-1408.56,0.00016438,2]
[366122153,1750074649215,-563.33,0.00016438,2]
[366122154,1750074649225,-879.02,0.00016438,2]
[366122155,1750074649237,-459.81436197,0.00016438,2]
[366122156,1750074649247,-490.0,0.00016438,2]
[366122157,1750074649257,-1189.75,0.00016438,2]
[366122158,1750074649267,-17367.7,0.00016438,2]
[366122159,1750074649277,-1991.29,0.00016438,2]
[366122160,1750074649287,-3071.82,0.00016438,2]
[366122161,1750074649297,-2637.51,0.00016438,2]
[366122162,1750074649307,-490.0,0.00016438,2]
[366122163,1750074649317,-490.0,0.00016438,2]
[366122164,1750074649326,-490.0,0.00016438,2]
[366122165,1750074649336,-2351.48,0.00016438,2]
[366122166,1750074649346,-490.0,0.00016438,2]
[366122167,1750074649356,-293.29684588,0.00016438,2]
[366122168,1750074649365,-1084.26,0.00016438,2]
[366122169,1750074649374,-490.0,0.00016438,2]
[366122170,1750074649383,-490.0,0.00016438,2]
[366122171,1750074649393,-912.4,0.00016438,2]
[366122172,1750074649403,-443.14407248,0.00016438,2]
[366122173,1750074649426,-2266.15592752,0.00016438,2]
[366122174,1750074649435,-549.28,0.00016438,2]
[366122175,1750074649446,-498.31,0.00016438,2]
[366122176,1750074649456,-3734.00151784,0.00016451,2]
[366122177,1750074649466,-491.29,0.00016465,2]
[366122178,1750074649475,-440.16,0.00016466,2]
[366122179,1750074649485,-301.23,0.00016466,2]
[366122180,1750074649495,-176.80313314,0.00016502,2]
[366122181,1750074649505,-255.91086806,0.00016502,2]
[366122182,1750074649515,-833.8156298,0.00016507,2]
[366122183,1750074649524,-151.0,0.00016521,2]
[366122184,1750074649533,-151.0,0.00016521,2]
[366122185,1750074649542,-151.0,0.00016521,2]
[366122186,1750074649551,-151.0,0.00016587,2]
[366122187,1750074649560,-151.0,0.00016587,2]
[366122188,1750074649571,-151.0,0.00016587,2]
[366122189,1750074649580,-814.103736,0.00016592,2]
[366122190,1750074649590,-2768.54,0.000166,2]
[366122191,1750074649600,-500.0,0.00016601,2]
[366122192,1750074649609,-240.80769535,0.00016601,2]
[366122193,1750074649618,-168.4086052,0.00016601,2]
[366122194,1750074649628,-396.52535342,0.00016601,2]
[366122195,1750074649637,-500.0,0.00016601,2]
[366122196,1750074649647,-499.69,0.00016602,2]
[366122197,1750074649657,-498.01,0.00016602,2]
[366122198,1750074649667,-498.19,0.00016602,2]
[366122199,1750074649676,-151.0,0.00016602,2]
[366122200,1750074649686,-151.0,0.00016602,2]
[366122201,1750074649695,-151.0,0.00016602,2]
[366122202,1750074649707,-151.0,0.00016602,2]
[366122203,1750074649717,-2371.67068,0.00016602,2]
[366122204,1750074649727,-1877.550546,0.00016602,2]
[366122205,1750074649737,-490.0,0.00016602,2]
[366122206,1750074649746,-490.0,0.00016602,2]
[366122207,1750074649758,-490.0,0.00016602,2]
[366122208,1750074649768,-490.0,0.00016602,2]
[366122209,1750074649778,-490.0,0.00016602,2]
[366122210,1750074649787,-335.67089435,0.00016602,2]
[366122211,1750074649797,-490.0,0.00016602,2]
[366122212,1750074649807,-490.0,0.00016602,2]
[366122213,1750074649816,-490.0,0.00016602,2]
[366122214,1750074649826,-490.0,0.00016602,2]
[366122215,1750074649835,-490.0,0.00016602,2]
[366122216,1750074649845,-490.0,0.00016602,2]
[366122217,1750074649854,-490.0,0.00016602,2]
[366122218,1750074649863,-490.0,0.00016602,2]
[366122219,1750074649873,-490.0,0.00016602,2]
[366122220,1750074649882,-490.0,0.00016602,2]
[366122221,1750074649891,-490.0,0.00016602,2]
[366122222,1750074649900,-490.0,0.00016602,2]
[366122223,1750074649910,-490.0,0.00016602,2]
[366122224,1750074649919,-490.0,0.00016602,2]
[366122225,1750074649931,-490.0,0.00016602,2]
[366122226,1750074649940,-490.0,0.00016602,2]
[366122227,1750074649950,-490.0,0.00016602,2]
[366122228,1750074649959,-490.0,0.00016602,2]
[366122229,1750074649970,-169.97623835,0.00016602,2]
[366122230,1750074649984,-320.02376165,0.00016602,2]
[366122231,1750074649995,-236.15124877,0.00016602,2]
[366122232,1750074650012,-253.84875123,0.00016602,2]
[366122233,1750074650022,-490.0,0.00016602,2]
[366122234,1750074650033,-395.23275306,0.00016602,2]
[366122235,1750074650047,-723.66,0.00016602,2]
[366122236,1750074650062,-2056.81358828,0.00016602,2]
[366122237,1750074650079,-2007.44641172,0.00016602,2]
[366122238,1750074650090,-1935.44106831,0.00016602,2]
[366122239,1750074650110,-2022.3919493,0.00016602,2]
[366122240,1750074650126,-106.42698239,0.00016602,2]
[366122241,1750074650139,-4064.26,0.00016602,2]
[366122242,1750074650151,-4064.26,0.00016602,2]
[366122243,1750074650164,-4064.26,0.00016602,2]
[366122244,1750074650177,-4064.26,0.00016602,2]
[366122245,1750074650191,-4064.26,0.00016602,2]
[366122246,1750074650204,-4064.26,0.00016602,2]
[366122247,1750074650216,-4064.26,0.00016602,2]
[366122248,1750074650228,-4064.26,0.00016602,2]
[366122249,1750074650241,-4064.26,0.00016602,2]
[366122250,1750074650251,-4064.26,0.00016602,2]
[366122251,1750074650265,-4064.26,0.00016602,2]
[366122252,1750074650280,-4064.26,0.00016602,2]
[366122253,1750074650295,-2265.45301761,0.00016602,2]
[366122254,1750074671375,201.0,0.00014547,2]
[366122256,1750074717047,150.85,0.00013699,2]
[366122258,1750075030870,800.0,0.00015068,2]
[366122261,1750075332556,205.0,0.00015302,2]
[366122266,1750075831972,-460.0,0.00015513,2]
[366122267,1750075831986,-540.0,0.00015513,2]
[366122268,1750075831996,-360.37,0.00015527,2]
[366122269,1750075832006,-411.96,0.00015617,2]
[366122270,1750075832015,-205.0,0.00015698,2]
[366122271,1750075832025,-250.0,0.00015724,2]
[366122272,1750075832035,-166.65,0.00016133,2]
[366122273,1750075832045,-1219.41,0.000163,2]
[366122274,1750075832053,-362.02922114,0.00016328,2]
[366122275,1750075832061,-207.4,0.00016328,2]
[366122276,1750075832071,-1200.0,0.00016337,2]
[366122277,1750075832080,-165.42667141,0.00016338,2]
[366122278,1750075832090,-2296.3117882,0.00016338,2]
[366122279,1750075832102,-156.31236705,0.00016338,2]
[366122280,1750075832112,-2175.0311,0.00016338,2]
[366122281,1750075832122,-2296.31178813,0.00016392,2]
[366122282,1750075832132,-168.0,0.00016399,2]
[366122283,1750075832142,-1008.0,0.000164,2]
[366122284,1750075832151,-218.75,0.00016428,2]
[366122285,1750075832161,-151.0,0.00016428,2]
[366122286,1750075832171,-867.9924602,0.00016432,2]
[366122287,1750075832180,-305.3,0.00016437,2]
[366122288,1750075832190,-505.74,0.00016437,2]
[366122289,1750075832199,-507.39,0.00016437,2]
[366122290,1750075832210,-415.22985073,0.00016437,2]
[366122291,1750075832220,-362.77014927,0.00016437,2]
[366122292,1750075832229,-241.66337385,0.00016437,2]
[366122293,1750075832239,-500.0,0.00016437,2]
[366122294,1750075832248,-604.559,0.00016437,2]
[366122295,1750075832262,-500.0,0.00016437,2]
[366122296,1750075832272,-2286.027016,0.00016438,2]
[366122297,1750075832281,-677.2558081,0.00016438,2]
[366122305,1750075832353,-729.15189727,0.00016438,2]
[366122307,1750075832364,-301.28934924,0.00016438,2]
[366122312,1750075832403,-98.49744439,0.00016438,2]
[366122314,1750075832413,-190.11856261,0.00016438,2]
[366122363,1750075840585,-159.39672902,0.00016338,2]
[366122364,1750075840597,-490.0,0.00016438,2]
[366122365,1750075840610,-447.42327096,0.00016438,2]
[366122366,1750075840624,-93.27672904,0.00016438,2]
[366122367,1750075840636,-432.20288992,0.00016438,2]
[366122368,1750075840648,-9.42038104,0.00016438,2]
[366122369,1750075840663,-480.57961896,0.00016438,2]
[366122370,1750075840674,-47.07338104,0.00016438,2]
[366122371,1750075840710,-442.92661896,0.00016438,2]
[366122372,1750075840721,-157.11969,0.00016438,2]
[366122373,1750075840734,-490.0,0.00016438,2]
[366122374,1750075840746,-490.0,0.00016438,2]
[366122375,1750075840757,-158.111379,0.00016438,2]
[366122376,1750075840770,-1075.58,0.00016438,2]
[366122377,1750075840781,-490.0,0.00016438,2]
[366122378,1750075840793,-490.0,0.00016438,2]
[366122379,1750075840804,-490.0,0.00016438,2]
[366122380,1750075840816,-490.0,0.00016438,2]
[366122381,1750075840827,-490.0,0.00016438,2]
[366122382,1750075840838,-490.0,0.00016438,2]
[366122383,1750075840848,-490.0,0.00016438,2]
[366122384,1750075840860,-490.0,0.00016438,2]
[366122385,1750075840871,-490.0,0.00016438,2]
[366122386,1750075840882,-490.0,0.00016438,2]
[366122387,1750075840893,-490.0,0.00016438,2]
[366122388,1750075840903,-490.0,0.00016438,2]
[366122389,1750075840915,-502.59,0.00016438,2]
[366122390,1750075840926,-490.0,0.00016438,2]
[366122392,1750075840937,-490.0,0.00016438,2]
[366122394,1750075840948,-490.0,0.00016438,2]
[366122396,1750075840959,-1219.23,0.00016438,2]
[366122399,1750075840969,-490.0,0.00016438,2]
[366122401,1750075840980,-490.0,0.00016438,2]
[366122403,1750075840991,-490.0,0.00016438,2]
[366122405,1750075841002,-490.0,0.00016438,2]
[366122407,1750075841012,-490.0,0.00016438,2]
[366122409,1750075841023,-490.0,0.00016438,2]
[366122410,1750075841033,-490.0,0.00016438,2]
[366122411,1750075841044,-490.0,0.00016438,2]
[366122412,1750075841055,-490.0,0.00016438,2]
[366122413,1750075841065,-490.0,0.00016438,2]
[366122414,1750075841076,-490.0,0.00016438,2]
[366122415,1750075841087,-490.98,0.00016438,2]
[366122416,1750075841098,-490.0,0.00016438,2]
[366122417,1750075841110,-490.0,0.00016438,2]
[366122418,1750075841121,-490.0,0.00016438,2]
[366122419,1750075841132,-490.0,0.00016438,2]
[366122420,1750075841143,-490.0,0.00016438,2]
[366122421,1750075841154,-490.0,0.00016438,2]
[366122422,1750075841165,-300.0,0.00016438,2]
[366122423,1750075841176,-490.0,0.00016438,2]
[366122424,1750075841188,-490.0,0.00016438,2]
[366122425,1750075841199,-525.46231204,0.00016438,2]
[366122426,1750075841453,-298.11768796,0.00016438,2]
[366122427,1750075841465,-490.0,0.00016438,2]
[366122428,1750075841475,-490.0,0.00016438,2]
[366122429,1750075841487,-566.64,0.00016438,2]
[366122430,1750075841498,-490.0,0.00016438,2]
[366122431,1750075841509,-490.0,0.00016438,2]
[366122432,1750075841520,-490.0,0.00016438,2]
[366122433,1750075841530,-490.0,0.00016438,2]
[366122434,1750075841543,-490.0,0.00016438,2]
[366122435,1750075841554,-490.0,0.00016438,2]
[366122436,1750075841564,-896.4,0.00016438,2]
[366122437,1750075841575,-490.0,0.00016438,2]
[366122438,1750075841586,-490.0,0.00016438,2]
[366122439,1750075841598,-490.0,0.00016438,2]
[366122440,1750075841609,-490.0,0.00016438,2]
[366122441,1750075841620,-490.0,0.00016438,2]
[366122442,1750075841632,-490.0,0.00016438,2]
[366122443,1750075841642,-490.0,0.00016438,2]
[366122444,1750075841653,-490.0,0.00016438,2]
[366122445,1750075841664,-490.0,0.00016438,2]
[366122446,1750075841675,-490.0,0.00016438,2]
[366122447,1750075841686,-490.0,0.00016438,2]
[366122448,1750075841697,-158.111379,0.00016438,2]
[366122449,1750075841707,-490.0,0.00016438,2]
[366122450,1750075841719,-490.0,0.00016438,2]
[366122451,1750075841729,-490.0,0.00016438,2]
[366122452,1750075841739,-490.0,0.00016438,2]
[366122453,1750075841750,-866.46,0.00016438,2]
[366122454,1750075841762,-490.0,0.00016438,2]